Cogmind - Beta 11.1 @@@ ROGUE MODE // 2022.05.04 @ 10:28:09 Player: ktur Result: Self-destructed Performance ------------- Evolutions (4) 2000 Regions Visited (16) 3200 Robots Destroyed (170) 850 Value Destroyed (4859) 4859 Prototype IDs (43) 860 Alien Tech Used (0) 0 Bonus (1005) 1005 TOTAL SCORE: 12774 Bonus ------- High Alert Combat Kills 50 Follower Combat Kills 655 Met Data Miner 300 Cogmind --------- Core Integrity 448/850 Matter 300/300 Energy 140/150 System Corruption 3% Temperature Cool (0) Movement Hovering (43) Location -6/Factory Parts ------- > --- POWER (1) -------- Micro Nuclear Core > --- PROPULSION (5) --- Gravmag System Gravmag Array Cooled Gravmag System Cooled Gravmag System > --- UTILITY (7) ------ High-capacity Storage Unit Experimental Sensor Array Advanced Signal Interpreter System Mapper Deep Network Scanner Ghost Barrier Quantum Router > --- WEAPON (2) ------- Lance > --- INVENTORY (20) --- Gravmag Array Linear Gravjet Matter Compressor (250) Experimental Utility Shielding Experimental Weapon Shielding Experimental Weapon Shielding Advanced Powered Armor Hacking Suite Hacking Suite Authchip [Propulsion] Authchip [Device] Authchip [Processor] Authchip [Processor] Authchip [Weapon] Improved Trap Extractor (4/6 Fire) Combat Drone Bay (2/2) Heavy Plasma Cannon Mini Smartbomb Launcher Peak State ------------ > --- POWER ------------ Micro Nuclear Core > --- PROPULSION ------- Gravmag Array Linear Gravjet Cooled Gravmag System Cooled Gravmag System > --- UTILITY ---------- High-capacity Storage Unit Experimental Sensor Array Advanced Signal Interpreter System Mapper Deep Network Scanner Ghost Barrier Quantum Router > --- WEAPON ----------- Lance > --- INVENTORY -------- Gravmag System Gravmag Array Matter Compressor Experimental Utility Shielding Experimental Weapon Shielding Experimental Weapon Shielding Advanced Powered Armor Hacking Suite Hacking Suite Authchip [Propulsion] Authchip [Device] Authchip [Processor] Authchip [Processor] Authchip [Weapon] Improved Trap Extractor Combat Drone Bay Heavy Plasma Cannon Mini Smartbomb Launcher [Rating: 103] Favorites ----------- Power Heavy Ion Engine Engine Heavy Ion Engine Power Core Light Nuclear Core Propulsion Aerolev Unit Treads Light Treads Leg Flexi-carbon Leg Hover Unit Aerolev Unit Utility Hacking Suite Device Experimental Sensor Array Storage Large Storage Unit Processor Advanced Signal Interpreter Hackware Hacking Suite Protection Light Armor Plating Weapon Enhanced Autogun Energy Gun Small Laser Energy Cannon Advanced Beam Cannon Ballistic Gun Enhanced Autogun Launcher Mini Smartbomb Launcher Special Weapon Remote Datajack Slashing Weapon Katana Piercing Weapon Spear Build | -11 -10 -10 -9 -9 -8 -8 -7 -7 -7 -7 -7 -7 -6 -6 -6 -6 ------- Run | Scr Mat Min Mat Min Mat Sto Fac Was Fac Low Low Dat Pro Fac Was Fac Slots Evolved 8 | . . . 2 . 2 . 2 . . . . . . 2 . . Power . | . . . . . . . . . . . . . . . . . Propulsion 3 | . . . 1 . . . 1 . . . . . . 1 . . Utility 5 | . . . 1 . 2 . 1 . . . . . . 1 . . Weapon . | . . . . . . . . . . . . . . . . . Parts Attached 221 | 6 11 3 29 3 22 12 21 1 8 16 . 2 8 73 5 1 Power 13 | 1 1 . 3 . . . 1 . . 1 . . . 6 . . Engine 7 | 1 1 . 3 . . . . . . . . . . 2 . . Core 6 | . . . . . . . 1 . . 1 . . . 4 . . Reactor . | . . . . . . . . . . . . . . . . . Propulsion 49 | 2 2 . 12 . 9 1 5 1 1 1 . . . 13 1 1 Treads 25 | 2 2 . 12 . 8 1 . . . . . . . . . . Leg 5 | . . . . . . . . . . . . . . 5 . . Wheel . | . . . . . . . . . . . . . . . . . Hover 19 | . . . . . 1 . 5 1 1 1 . . . 8 1 1 Flight . | . . . . . . . . . . . . . . . . . Utility 112 | 1 3 . 6 2 6 8 11 . 6 13 . 2 6 45 3 . Device 47 | . . . 3 . 2 2 3 . 3 8 . . 3 20 3 . Storage 7 | 1 1 . 1 . . . 2 . . . . . . 2 . . Processor 4 | . . . . . 1 . 2 . . . . . . 1 . . Hackware 13 | . . . . . . 1 2 . 1 . . . . 9 . . Protection 41 | . 2 . 2 2 3 5 2 . 2 5 . 2 3 13 . . Artifact . | . . . . . . . . . . . . . . . . . Weapon 47 | 2 5 3 8 1 7 3 4 . 1 1 . . 2 9 1 . Energy Gun 5 | 1 1 . 3 . . . . . . . . . . . . . Energy Cannon 3 | . . . 2 . 1 . . . . . . . . . . . Ballistic Gun 16 | 1 3 2 2 . 6 2 . . . . . . . . . . Ballistic Cannon . | . . . . . . . . . . . . . . . . . Launcher 16 | . 1 1 1 1 . 1 2 . . 1 . . 1 7 . . Special Weapon 1 | . . . . . . . . . . . . . . 1 . . Impact Weapon . | . . . . . . . . . . . . . . . . . Slashing Weapon 2 | . . . . . . . 2 . . . . . . . . . Piercing Weapon 4 | . . . . . . . . . 1 . . . 1 1 1 . Special Melee Weapon . | . . . . . . . . . . . . . . . . . Unidentified Prototypes 8 | . . . . . 1 2 . . . . . . . 5 . . Corrupted Parts 1 | . . . . . . . . . . 1 . . . . . . System Corruption 7 | . . . . . . . . . . 7 . . . . . . Parts Lost 15 | . . . 1 . . . . . . 1 . . . 13 . . Power 5 | . . . . . . . . . . 1 . . . 4 . . Propulsion 7 | . . . . . . . . . . . . . . 7 . . Utility 2 | . . . 1 . . . . . . . . . . 1 . . Weapon 1 | . . . . . . . . . . . . . . 1 . . Highest Loss Streak 6 | . . . 1 . . . . . . 1 . . . 6 . . To Critical Strikes . | . . . . . . . . . . . . . . . . . Average Slot Usage (%) 92 | . 96 100 97 100 91 99 91 92 92 92 92 91 92 81 86 86 Engine 6 | . 13 14 11 11 9 9 . . . . . . . 3 . . Core 2 | . . . . . . . 7 7 7 6 7 7 7 2 6 6 Treads 16 | . 28 28 33 33 26 27 . . . . . . . . . . Hover 10 | . . . . . . . 29 30 30 30 30 30 30 17 26 26 Device 6 | . . . 11 11 8 9 6 7 6 5 7 6 5 5 6 6 Storage 9 | . 14 14 11 11 9 9 7 7 7 7 7 7 7 6 6 6 Processor 4 | . . . . . 9 . 6 7 7 7 7 7 7 6 6 6 Hackware 10 | . . . . . . 8 22 23 23 23 23 18 15 24 26 26 Protection 7 | . 11 14 8 11 10 17 . . . 1 . 4 8 2 . . Energy Gun 2 | . 13 7 6 . . . . . . . . . . . . . Ballistic Gun 8 | . 14 20 12 11 15 17 . . . . . . . . . . Piercing Weapon 2 | . . . . . . . . . 2 7 7 6 6 6 6 6 Naked Turns . | . . . . . . . . . . . . . . . . . Heaviest Build 76 | 13 30 32 63 63 76 75 35 28 31 38 28 32 40 53 50 50 Greatest Support 84 | 40 40 40 69 69 84 84 32 32 32 32 32 32 32 55 51 51 Greatest Overweight (x) 1 | . . . 1 . . . 1 . . 1 . . 1 1 . . Average Overweight (x) . | . . . . . . . . . . . . . . . . . Largest Inventory Capacity 20 | 8 15 15 20 20 20 20 20 15 15 15 15 15 15 20 20 20 Average Capacity 16 | 7 10 15 19 20 20 20 15 15 15 15 15 15 15 15 20 20 Most Carried 20 | 5 15 15 20 20 20 20 20 15 15 15 15 15 15 20 20 20 Average Carried 16 | 3 9 14 19 19 19 19 14 14 14 14 15 14 14 14 19 20 Final Capacity 20 | 8 15 15 20 20 20 20 15 15 15 15 15 15 15 20 20 20 Final Carried 20 | 5 15 15 20 20 20 20 15 15 15 15 15 15 15 20 20 20 Class Distribution -------------------- 52% | Mutant 24% | Hacker-Mutant 19% | Wizard-Mutant 4% | Scavenger-Mutant Dominant Class ---------------- Mutant | -10/Materials Mutant | -10/Mines Mutant | -9/Materials Mutant | -9/Mines Mutant | -8/Materials Mutant | -8/Storage Hacker-Mutant | -7/Factory Hacker-Mutant | -7/Waste Hacker-Mutant | -7/Factory Hacker-Mutant | -7/Lower Caves Hacker-Mutant | -7/Lower Caves Hacker-Mutant | -7/Data Miner Hacker-Mutant | -6/Proximity Caves Wizard-Mutant | -6/Factory Wizard-Mutant | -6/Waste Wizard-Mutant | -6/Factory Resources | -11 -10 -10 -9 -9 -8 -8 -7 -7 -7 -7 -7 -7 -6 -6 -6 -6 ----------- Run | Scr Mat Min Mat Min Mat Sto Fac Was Fac Low Low Dat Pro Fac Was Fac Matter Collected 5299 | 213 425 59 479 190 955 727 333 10 70 179 30 . 190 1329 100 10 Remotely . | . . . . . . . . . . . . . . . . . Salvage Created 6297 | . 494 84 938 4 1745 1143 210 . 27 139 . 29 108 1160 . 216 Parts 388 | . 28 5 51 . 111 58 18 . 4 12 . 6 12 74 . 9 Haulers Intercepted 13 | . 1 . 2 . 5 3 . . . . . . . 1 . 1 Recyclers Shooed 8 | . 1 . 2 . 1 1 1 . . . . . . 2 . . Parts Field Recycled . | . . . . . . . . . . . . . . . . . Retrieved Matter . | . . . . . . . . . . . . . . . . . Parts Self-Destructed 17 | . . . . . . . . . . 7 . . 10 . . . Prevented . | . . . . . . . . . . . . . . . . . Kills | -11 -10 -10 -9 -9 -8 -8 -7 -7 -7 -7 -7 -7 -6 -6 -6 -6 ------- Run | Scr Mat Min Mat Min Mat Sto Fac Was Fac Low Low Dat Pro Fac Was Fac Combat Hostiles Destroyed 119 | . 11 3 19 5 32 18 6 . . 5 . . 5 15 . . Melee 8 | . . . . . . . . . . 2 . . 1 5 . . Guns 67 | . 11 . 13 . 25 18 . . . . . . . . . . Cannons 8 | . . . 3 . 5 . . . . . . . . . . . AOE 33 | . . 3 2 5 . . 6 . . 3 . . 4 10 . . Classes Destroyed 16 | . 6 . 2 1 4 1 . . . 2 . . . . . . Worker 10 | . . . 2 . 1 1 . . . . . . . 5 . 1 Builder 6 | . 1 . . . . . . . . . . . . 5 . . Tunneler 3 | . . . . . 1 . 1 . . . . . . 1 . . Hauler 13 | . 1 . 2 . 5 3 . . . . . . . 1 . 1 Recycler 9 | . 1 1 1 . . 1 1 . . . . . . 3 . 1 Minesweeper 1 | . . . . . . . . . . 1 . . . . . . Operator 5 | . 1 . 1 . 3 . . . . . . . . . . . Watcher 8 | . . . . . 2 . 3 . 1 . . . . 2 . . Swarmer 36 | . 3 3 5 . 8 . 6 . . 3 . . 4 4 . . Grunt 45 | . 8 . 9 . 13 12 . . . . . . . 3 . . Brawler 2 | . . . . . . 1 . . . . . . . 1 . . Duelist 1 | . . . . . 1 . . . . . . . . . . . Sentry 19 | . . . 5 . 9 5 . . . . . . . . . . Hunter 6 | . . . . . 1 . . . . . . . . 5 . . Programmer 4 | . . . . . . . . . . 1 . . 1 2 . . Assembled 5 | . . . . 5 . . . . . . . . . . . . Thug 1 | . . . . . . . . . . 1 . . . . . . Best Kill Streak 9 | . 2 4 3 1 9 3 4 . 1 3 . 1 4 9 . 3 Combat Bots Only 8 | . 2 3 3 1 8 3 3 . . 3 . . 4 5 . . Max Kills in Single Turn 4 | . 1 2 1 1 2 1 2 . 1 2 . 1 4 3 . 1 Gunslinging 1 | . . . . . 1 . . . . . . . . . . . Exploded 4 | . . 2 1 1 . . 2 . . 2 . . 4 2 . . Melee 1 | . . . . . . . . . . 1 . . 1 1 . . Uniques/NPCs Destroyed 1 | . . . . . . . . . . . . 1 . . . . Data Miner (-7/Data Miner) Combat | -11 -10 -10 -9 -9 -8 -8 -7 -7 -7 -7 -7 -7 -6 -6 -6 -6 -------- Run | Scr Mat Min Mat Min Mat Sto Fac Was Fac Low Low Dat Pro Fac Was Fac Damage Taken 6376 | . 366 10 922 98 1574 664 315 . 91 153 . 226 197 1760 . . Core 1122 | . 40 . 75 . 186 101 120 . 29 47 . 90 32 402 . . Absorbed by Shields . | . . . . . . . . . . . . . . . . . Redirected to Shielding 165 | . . . . . . . . . . . . 58 37 70 . . Regen/Repaired (Parts) 1355 | . 78 . . . . 823 35 . 10 19 . 5 58 327 . . Core Remaining (%) 73 | 100 . 84 . 81 . 47 . . . . . . 54 . . . Volleys Fired 352 | . 45 3 73 12 115 79 8 . . 2 . . 1 14 . . Largest 2 | . 2 2 2 1 2 2 1 . . 1 . . 1 1 . . Hottest 95 | . 60 60 95 30 91 50 36 . . 39 . . 39 80 . . Shots Fired 655 | . 86 4 142 12 229 157 8 . . 2 . . 1 14 . . Gun 575 | . 85 2 128 . 204 156 . . . . . . . . . . Cannon 35 | . . . 10 . 25 . . . . . . . . . . . Launcher 43 | . 1 2 4 12 . 1 8 . . 2 . . 1 12 . . Special 2 | . . . . . . . . . . . . . . 2 . . Kinetic 483 | . 44 1 78 . 204 156 . . . . . . . . . . Thermal 127 | . 41 1 60 . 25 . . . . . . . . . . . Explosive 43 | . 1 2 4 12 . 1 8 . . 2 . . 1 12 . . Electromagnetic . | . . . . . . . . . . . . . . . . . Robot Hit Streak 21 | . 10 3 17 18 21 13 3 . . . . . . 4 . . Robot Miss Streak 4 | . 2 1 3 2 3 4 4 . . . . . . 3 . . Penetration Max . | . . . . . . . . . . . . . . . . . Secondary Targets 6 | . . . 1 . 4 1 . . . . . . . . . . Max Gunslinging Chain 1 | . . . 1 . 1 1 . . . . . . . . . . Shots Hit Robots 512 | . 58 3 111 5 161 96 11 . 1 6 . 1 6 46 . 7 Core Hits 275 | . 33 5 41 10 71 41 13 . 1 5 . 1 6 44 . 4 Critical Kills 2 | . . . . . 2 . . . . . . . . . . . Critical Parts Destroyed . | . . . . . . . . . . . . . . . . . Critical Strikes 13 | . . . 5 . 2 . . . . . . . 1 4 . 1 Burn 5 | . . . 5 . . . . . . . . . . . . . Meltdown 2 | . . . . . 2 . . . . . . . . . . . Impale 6 | . . . . . . . . . . . . . 1 4 . 1 Melee Attacks 249 | . . . . . . . 36 . 9 12 3 23 22 134 . 10 Impact . | . . . . . . . . . . . . . . . . . Slashing 40 | . . . . . . . 36 . 4 . . . . . . . Piercing 209 | . . . . . . . . . 5 12 3 23 22 134 . 10 Sneak Attacks 22 | . . . . . . . 2 . . 1 . 1 . 15 . 3 Combat Hostiles . | . . . . . . . . . . . . . . . . . Follow-up Attacks . | . . . . . . . . . . . . . . . . . Damage Inflicted 13486 | . 717 235 1888 422 2898 1780 1028 . 42 410 . 68 450 3149 . 399 Guns 6226 | . 618 22 1406 . 2472 1708 . . . . . . . . . . Cannons 595 | . . . 211 . 384 . . . . . . . . . . . Explosions 3569 | . 43 199 245 422 . 53 661 . . 172 . . 289 1485 . . Melee 2939 | . . . . . . . 367 . 42 238 . 68 161 1664 . 399 Ramming 157 | . 56 14 26 . 42 19 . . . . . . . . . . Kinetic 5153 | . 257 10 706 . 2472 1708 . . . . . . . . . . Thermal 1668 | . 361 12 911 . 384 . . . . . . . . . . . Explosive 3569 | . 43 199 245 422 . 53 661 . . 172 . . 289 1485 . . Electromagnetic . | . . . . . . . . . . . . . . . . . Impact . | . . . . . . . . . . . . . . . . . Slashing 367 | . . . . . . . 367 . . . . . . . . . Piercing 2572 | . . . . . . . . . 42 238 . 68 161 1664 . 399 Highest Corruption 9 | . . . . . . . 1 1 1 7 7 7 9 3 3 3 Average Corruption 3 | . . . . . . . 1 1 1 7 7 7 7 2 3 3 Corruption Purged 1 | . . . . . . . . . 1 . . . . . . . Corruption Blocked . | . . . . . . . . . . . . . . . . . Effects 64 | . . . . . . . 1 1 1 7 2 7 11 30 3 1 Message Errors 22 | . . . . . . . . 1 1 1 1 2 2 12 1 1 Matter Fused 14 | . . . . . . . . . . 1 1 3 3 6 . . Heat Flow Errors 7 | . . . . . . . . . . 1 . 1 2 2 1 . Energy Discharges 8 | . . . . . . . . . . 1 . . 2 5 . . Parts Rejected 2 | . . . . . . . . . . 1 . . . . 1 . Data Loss (minor) 8 | . . . . . . . 1 . . 2 . . 2 3 . . Data Loss (major) 2 | . . . . . . . . . . . . 1 . 1 . . Alerts 1 | . . . . . . . . . . . . . . 1 . . Overload Shots . | . . . . . . . . . . . . . . . . . Overflow Damage 573 | . . 5 3 15 . . 56 . . 43 . . 11 386 . 54 Projectiles 3 | . . . 3 . . . . . . . . . . . . . Explosions 142 | . . 5 . 15 . . 11 . . 23 . . . 88 . . Melee 428 | . . . . . . . 45 . . 20 . . 11 298 . 54 Knockbacks . | . . . . . . . . . . . . . . . . . Impact . | . . . . . . . . . . . . . . . . . Kinetic . | . . . . . . . . . . . . . . . . . Secondary . | . . . . . . . . . . . . . . . . . Self-Inflicted Damage 263 | . . . 81 10 . . 37 . . . . . . 135 . . Shots 10 | . . . 3 1 . . 2 . . . . . . 4 . . Rammed 23 | . 9 4 4 . 2 4 . . . . . . . . . . Targets Rammed 26 | . 10 4 5 . 3 4 . . . . . . . . . . Kicked . | . . . . . . . . . . . . . . . . . Crushed 3 | . 1 . 1 . 1 . . . . . . . . . . . Highest Temperature 279 | . 117 26 197 . 196 24 . . 2 256 . 107 237 204 279 . Average Temperature 54 | . 43 16 53 . 52 5 . . 2 104 . 58 104 68 147 . Received Heat Transfer 1872 | . 174 . 411 . 612 369 12 . 24 9 . . . 261 . . Effects 3 | . . . . . . . . . . . . . . 3 . . Interference 3 | . . . . . . . . . . . . . . 3 . . Siege Activations . | . . . . . . . . . . . . . . . . . Robots Corrupted . | . . . . . . . . . . . . . . . . . Combat Hostiles . | . . . . . . . . . . . . . . . . . Parts Fried 1 | . . . . . . . . . . 1 . . . . . . Impact Corruptions . | . . . . . . . . . . . . . . . . . Robots Melted 3 | . . . 1 . 2 . . . . . . . . . . . Combat Hostiles 3 | . . . 1 . 2 . . . . . . . . . . . Parts Melted 9 | . . . 3 . 6 . . . . . . . . . . . Heat Transferred 3748 | . 800 25 2257 . 666 . . . . . . . . . . . Parts Sabotaged . | . . . . . . . . . . . . . . . . . Parts Stolen . | . . . . . . . . . . . . . . . . . Parts Stripped . | . . . . . . . . . . . . . . . . . Power Chain Reactions . | . . . . . . . . . . . . . . . . . Missiles Intercepted . | . . . . . . . . . . . . . . . . . Alert | -11 -10 -10 -9 -9 -8 -8 -7 -7 -7 -7 -7 -7 -6 -6 -6 -6 ------- Run | Scr Mat Min Mat Min Mat Sto Fac Was Fac Low Low Dat Pro Fac Was Fac Peak Influence 564 | . 165 114 418 147 564 293 172 15 524 . . . . 360 75 138 Initial 237 | . . 3 . 21 18 237 4 15 10 . . . . 75 40 24 Average 114 | . 54 73 175 54 181 78 81 15 281 . . . . 100 43 79 Maximum Alert Level 2 | . . . 2 . 2 1 . . 2 . . . . 1 . . Low Security (%) 84 | 100 100 100 47 100 72 90 100 100 33 . . . . 95 100 100 Level 1 12 | . . . 50 . 19 9 . . 26 . . . . 4 . . Level 2 3 | . . . 1 . 8 . . . 40 . . . . . . . Level 3 . | . . . . . . . . . . . . . . . . . Level 4 . | . . . . . . . . . . . . . . . . . Level 5 . | . . . . . . . . . . . . . . . . . High Security . | . . . . . . . . . . . . . . . . . Max Security . | . . . . . . . . . . . . . . . . . Squads Dispatched 45 | . 2 . 1 . 5 1 9 . 11 . . . . 15 . 1 Investigation 19 | . 1 . . . . 1 5 . 4 . . . . 8 . . Extermination 6 | . . . . . . . 1 . 1 . . . . 4 . . Reinforcement 14 | . 1 . 1 . 3 . 2 . 4 . . . . 2 . 1 Assault . | . . . . . . . . . . . . . . . . . Garrison 6 | . . . . . 2 . 1 . 2 . . . . 1 . . Intercept . | . . . . . . . . . . . . . . . . . Searches Triggered . | . . . . . . . . . . . . . . . . . Construction Impeded 3 | . . . . . . . 1 . 1 . . . . 1 . . Haulers Reinforced 2 | . . . . . . . . . 1 . . . . . . 1 Active Scanning Responses . | . . . . . . . . . . . . . . . . . Cargo Convoy Interrupts . | . . . . . . . . . . . . . . . . . Stealth | -11 -10 -10 -9 -9 -8 -8 -7 -7 -7 -7 -7 -7 -6 -6 -6 -6 --------- Run | Scr Mat Min Mat Min Mat Sto Fac Was Fac Low Low Dat Pro Fac Was Fac Distress Signals 18 | . 2 . 2 . 7 3 2 . 2 . . . . . . . Communications Jammed . | . . . . . . . . . . . . . . . . . Distress Signals . | . . . . . . . . . . . . . . . . . Times Spotted 219 | . 24 5 31 6 55 22 17 . 13 8 . 3 5 24 4 2 Peak Tracking Total 8 | . 4 3 5 1 8 4 4 . 4 4 . 3 4 6 4 2 Tactical Retreats 12 | . 1 . 2 1 2 . 1 . 1 1 . . . 3 . . Traps | -11 -10 -10 -9 -9 -8 -8 -7 -7 -7 -7 -7 -7 -6 -6 -6 -6 ------- Run | Scr Mat Min Mat Min Mat Sto Fac Was Fac Low Low Dat Pro Fac Was Fac Traps Triggered 7 | . 1 . . . . 2 3 . . . . . . 1 . . Indirectly . | . . . . . . . . . . . . . . . . . Trap Hack Attempts . | . . . . . . . . . . . . . . . . . Triggered . | . . . . . . . . . . . . . . . . . Disarmed 7 | . . . . . 1 . . . . . . . . 6 . . Reprogrammed 12 | . . . . . . . . . . . . . . 6 . 6 Reused 1 | . . . . . . . . . . . . . . 1 . . Traps Extracted 4 | . . . . . . . . . . 4 . . . . . . Installed . | . . . . . . . . . . . . . . . . . Triggered 2 | . . . . . . . . . . 1 . . . 1 . . Most Traps Carried 4 | . . . . . . . . . . 4 4 4 4 4 4 4 Machines | -11 -10 -10 -9 -9 -8 -8 -7 -7 -7 -7 -7 -7 -6 -6 -6 -6 ---------- Run | Scr Mat Min Mat Min Mat Sto Fac Was Fac Low Low Dat Pro Fac Was Fac Machines Disabled 11 | . . . 1 1 . 2 1 . 4 . . 1 . 1 . . Max in Single Turn 1 | . . . 1 1 . 1 1 . . . . 1 . 1 . . Garrison Access 6 | . . . . . 1 1 . . 1 . . . . 3 . . Machines Sabotaged . | . . . . . . . . . . . . . . . . . Garrisons Compromised . | . . . . . . . . . . . . . . . . . Overloaded Fab Kills . | . . . . . . . . . . . . . . . . . Hacking | -11 -10 -10 -9 -9 -8 -8 -7 -7 -7 -7 -7 -7 -6 -6 -6 -6 --------- Run | Scr Mat Min Mat Min Mat Sto Fac Was Fac Low Low Dat Pro Fac Was Fac Machines Accessed 100 | . 9 1 9 . 12 11 14 . 13 . . 4 . 25 . 2 Terminals 49 | . 7 1 7 . 8 8 2 . 4 . . . . 10 . 2 Fabricators 15 | . . . . . . . 5 . 4 . . . . 6 . . Repair Stations 6 | . 1 . . . . 1 2 . . . . . . 2 . . Recycling Units 11 | . 1 . 1 . 2 1 3 . 1 . . . . 2 . . Scanalyzers 9 | . . . 1 . 1 . 2 . 3 . . . . 2 . . Garrison Access 6 | . . . . . 1 1 . . 1 . . . . 3 . . Total Hacks 401 | . 22 3 24 . 42 28 45 . 39 . . 30 . 144 . 24 Successful 289 | . 13 2 16 . 28 17 26 . 24 . . 30 . 118 . 15 Failed 111 | . 9 1 8 . 13 11 19 . 15 . . . . 26 . 9 Catastrophic 14 | . 4 . 1 . 2 1 1 . 3 . . . . 2 . . Database Lockouts 1 | . . . . . 1 . . . . . . . . . . . Manual 163 | . 10 3 10 . 22 17 12 . 14 . . . . 63 . 12 Terminals 199 | . 14 3 18 . 28 21 3 . 13 . . . . 75 . 24 Fabricators 56 | . . . . . . . 16 . 12 . . . . 28 . . Repair Stations 27 | . 7 . . . . 3 5 . . . . . . 12 . . Recycling Units 29 | . 1 . 1 . 7 2 11 . 2 . . . . 5 . . Scanalyzers 52 | . . . 5 . 5 . 10 . 11 . . . . 21 . . Garrison Access 8 | . . . . . 2 2 . . 1 . . . . 3 . . Terminal Hacks 128 | . 6 2 9 . 15 12 . . 7 . . 30 . 37 . 10 Record 11 | . . . . . . . . . . . . 11 . . . . Part Schematic 21 | . 1 . 2 . . . . . 1 . . 10 . 6 . 1 Robot Schematic 6 | . . . . . . . . . . . . 6 . . . . Robot Analysis 6 | . 1 1 1 . 2 1 . . . . . . . . . . Prototype ID Bank 14 | . 2 . 2 . 2 1 . . . . . 3 . 3 . 1 Open Door 3 | . . . . . . 3 . . . . . . . . . . Branch Access Points 3 | . . . . . . . . . 1 . . . . 1 . 1 Machine Index 1 | . . . . . . . . . . . . . . . . 1 Terminal Index 1 | . . . . . . . . . . . . . . 1 . . Fabricator Index 1 | . . . . . . . . . 1 . . . . . . . Repair Station Index 1 | . . . . . . . . . . . . . . 1 . . Scanalyzer Index 1 | . . . . . . . . . . . . . . 1 . . Alert Level 16 | . 1 1 1 . 5 2 . . 1 . . . . 4 . 1 Unreport Threat 11 | . . . 2 . 1 3 . . 3 . . . . 2 . . Locate Traps 7 | . . . . . 2 . . . . . . . . 4 . 1 Disarm Traps 2 | . . . . . 1 . . . . . . . . 1 . . Reprogram Traps 2 | . . . . . . . . . . . . . . 1 . 1 Recall Investigation 5 | . . . . . . . . . . . . . . 5 . . Recall Extermination 2 | . . . . . . . . . . . . . . 2 . . Recall Reinforcements 1 | . . . . . 1 . . . . . . . . . . . Hauler Manifests 7 | . 1 . 1 . 1 1 . . . . . . . 2 . 1 Registered Components 1 | . . . . . . 1 . . . . . . . . . . Zone Layout 5 | . . . . . . . . . . . . . . 3 . 2 Fabricator Hacks 30 | . . . . . . . 8 . 3 . . . . 19 . . Network Status 4 | . . . . . . . 2 . . . . . . 2 . . Load Schematic 19 | . . . . . . . 5 . 3 . . . . 11 . . Build 7 | . . . . . . . 1 . . . . . . 6 . . Repair Station Hacks 22 | . 5 . . . . 2 3 . . . . . . 12 . . Scan Component 12 | . 3 . . . . 1 2 . . . . . . 6 . . Repair 10 | . 2 . . . . 1 1 . . . . . . 6 . . Recycling Unit Hacks 11 | . 1 . 1 . 2 1 3 . . . . . . 3 . . Retrieve Components 11 | . 1 . 1 . 2 1 3 . . . . . . 3 . . Scanalyzer 48 | . . . 5 . 5 . 7 . 10 . . . . 21 . . Insert Component 25 | . . . 3 . 3 . 4 . 6 . . . . 9 . . Analyze 23 | . . . 2 . 2 . 3 . 4 . . . . 12 . . Garrison Access Hacks 6 | . . . . . 1 1 . . 1 . . . . 3 . . Seal Access 6 | . . . . . 1 1 . . 1 . . . . 3 . . Unauthorized Hacks 44 | . 1 . 1 . 5 1 5 . 3 . . . . 23 . 5 Terminals 25 | . 1 . 1 . 4 1 . . . . . . . 13 . 5 Track 4 | . . . . . . . . . . . . . . 3 . 1 Assimilate 3 | . . . . . . . . . . . . . . 2 . 1 Botnet 12 | . . . . . 3 1 . . . . . . . 6 . 2 Disrupt 1 | . . . . . . . . . . . . . . 1 . . Operators 5 | . 1 . 1 . 1 . . . . . . . . 1 . 1 Fabricators 14 | . . . . . . . 3 . 3 . . . . 8 . . Prioritize 3 | . . . . . . . . . . . . . . 3 . . Liberate 1 | . . . . . . . 1 . . . . . . . . . Recompile 10 | . . . . . . . 2 . 3 . . . . 5 . . Repair Stations . | . . . . . . . . . . . . . . . . . Recycling Units 5 | . . . . . 1 . 2 . . . . . . 2 . . Reject 2 | . . . . . . . 1 . . . . . . 1 . . Mask 3 | . . . . . 1 . 1 . . . . . . 1 . . Scanalyzers . | . . . . . . . . . . . . . . . . . Garrison Access . | . . . . . . . . . . . . . . . . . Data Cores Recovered 1 | . . . . . . . . . . . . . . . . 1 Used 1 | . . . . . . . . . . . . . . . . 1 Hacking Detections 76 | . 8 1 8 . 11 6 12 . 11 . . . . 17 . 2 Full Trace Events 6 | . . . . . . . 2 . 1 . . . . 3 . . Feedback Events 2 | . . . . . . . 1 . . . . . . 1 . . Corruption 2 | . . . . . . . 1 . . . . . . 1 . . Feedback Blocked . | . . . . . . . . . . . . . . . . . Robot Schematics Acquired 6 | . . . . . . . . . . . . 6 . . . . Robots Built . | . . . . . . . . . . . . . . . . . Authchips . | . . . . . . . . . . . . . . . . . Time . | . . . . . . . . . . . . . . . . . Total Robot Build Rating . | . . . . . . . . . . . . . . . . . Part Schematics Acquired 38 | . 1 . 4 . 2 . 2 . 5 . . 10 . 13 . 1 Parts Built 7 | . . . . . . . 1 . . . . . . 6 . . Authchips 5 | . . . . . . . . . . . . . . 5 . . Time 257 | . . . . . . . 39 . . . . . . 218 . . Total Part Build Rating 37 | . . . . . . . 7 . . . . . . 30 . . Parts Repaired 10 | . 2 . . . . 1 1 . . . . . . 6 . . Time 408 | . 52 . . . . 22 30 . . . . . . 304 . . Parts Recycled . | . . . . . . . . . . . . . . . . . Recycled Matter . | . . . . . . . . . . . . . . . . . Retrieved Matter . | . . . . . . . . . . . . . . . . . Retrieved Components 48 | . 9 . 9 . 13 1 1 . . . . . . 15 . . Parts Scanalyzed 18 | . . . 2 . 2 . 2 . 4 . . . . 8 . . Part Schematics Acquired 17 | . . . 2 . 2 . 2 . 4 . . . . 7 . . Parts Damaged 1 | . . . . . . . . . 1 . . . . . . . Bothacking | -11 -10 -10 -9 -9 -8 -8 -7 -7 -7 -7 -7 -7 -6 -6 -6 -6 ------------ Run | Scr Mat Min Mat Min Mat Sto Fac Was Fac Low Low Dat Pro Fac Was Fac Used RIF Installer . | . . . . . . . . . . . . . . . . . Robots Hacked 1 | . . . . . . . . . . . . . . 1 . . Non-combat 1 | . . . . . . . . . . . . . . 1 . . Combat . | . . . . . . . . . . . . . . . . . Robot Hacks Applied 1 | . . . . . . . . . . . . . . 1 . . find_chute 1 | . . . . . . . . . . . . . . 1 . . Relay Couplers Released . | . . . . . . . . . . . . . . . . . Fabnet Peak Effective % . | . . . . . . . . . . . . . . . . . Robots Rewired . | . . . . . . . . . . . . . . . . . Allies Hacked . | . . . . . . . . . . . . . . . . . Hacks Repelled . | . . . . . . . . . . . . . . . . . Allies | -11 -10 -10 -9 -9 -8 -8 -7 -7 -7 -7 -7 -7 -6 -6 -6 -6 -------- Run | Scr Mat Min Mat Min Mat Sto Fac Was Fac Low Low Dat Pro Fac Was Fac Total Allies 48 | . . 3 . 3 . . 2 20 . . . . . 1 19 . Largest Group 20 | . . 3 2 3 3 . 2 20 20 . . . . 1 19 17 Highest-Rated Group 702 | . . 77 46 40 40 . 42 540 540 . . . . 26 702 648 Highest-Rated Ally 50 | . . 31 31 16 16 . 21 35 35 . . . . 26 50 50 Total Orders . | . . . . . . . . . . . . . . . . . Ally Attacks 276 | . . 7 1 . 13 . 9 . 127 . . . . . 98 21 Total Damage 6876 | . . 64 20 . 137 . 185 . 2523 . . . . . 3441 506 Kills 38 | . . 3 1 . 1 . 2 . 22 . . . . . 6 3 Allies Corrupted . | . . . . . . . . . . . . . . . . . Allies Melted . | . . . . . . . . . . . . . . . . . Intel | -11 -10 -10 -9 -9 -8 -8 -7 -7 -7 -7 -7 -7 -6 -6 -6 -6 ------- Run | Scr Mat Min Mat Min Mat Sto Fac Was Fac Low Low Dat Pro Fac Was Fac Robot Analysis Total 6 | . 1 1 1 . 2 1 . . . . . . . . . . Derelict Logs Recovered 7 | . . 1 . 2 . . . . . 1 2 . 1 . . . Drone Launches . | . . . . . . . . . . . . . . . . . Drone Recoveries . | . . . . . . . . . . . . . . . . . Exploration | -11 -10 -10 -9 -9 -8 -8 -7 -7 -7 -7 -7 -7 -6 -6 -6 -6 ------------- Run | Scr Mat Min Mat Min Mat Sto Fac Was Fac Low Low Dat Pro Fac Was Fac Turns Passed 14866 | 84 1643 921 1629 525 2295 1266 1218 90 457 410 106 296 298 3328 152 148 Spaces Moved 13269 | 47 840 557 795 304 1145 594 2335 173 890 673 254 150 473 3573 236 230 Core 4 | 4 . . . . . . . . . . . . . . . . Treads 4278 | 43 840 557 795 304 1145 594 . . . . . . . . . . Legs 332 | . . . . . . . . . . . . . . 332 . . Wheels . | . . . . . . . . . . . . . . . . . Hover 8655 | . . . . . . . 2335 173 890 673 254 150 473 3241 236 230 Flight . | . . . . . . . . . . . . . . . . . Fastest Speed 34 | 50 160 160 160 160 160 160 38 38 38 38 38 38 38 34 38 38 Average Speed 82 | 150 160 160 161 160 160 160 38 38 38 38 38 38 40 57 38 38 Slowest Speed 240 | 160 160 160 240 160 160 163 98 38 38 98 38 38 98 190 40 43 Overloaded Moves . | . . . . . . . . . . . . . . . . . Propulsion Burnouts . | . . . . . . . . . . . . . . . . . Robots Hopped . | . . . . . . . . . . . . . . . . . Cave-ins Triggered . | . . . . . . . . . . . . . . . . . Exploration Rate (%) 60 | 3 95 99 61 65 87 59 45 88 35 50 47 80 74 50 89 6 Regions Visited 16 Branch Regions 7 Pre-discovered Areas 6 | . . 1 . 2 . 1 . . . . . 1 1 . . . Known Exits Taken 5 | . . . . . . . . . 1 1 1 1 1 . . . Unknown Exits Taken 7 | 1 1 1 1 1 1 1 . . . . . . . . . . Scrap Searched 6 | . . 1 . 2 . . . . . 1 1 . 1 . . . Spaces Dug 150 | . . . 9 . . . 23 . 7 31 3 . 8 68 . 1 Terrain Destroyed 425 | . 7 18 21 94 . 14 61 . 7 31 3 . 19 149 . 1 Melee 113 | . . . . . . . 23 . 7 3 3 . 8 68 . 1 Projectile . | . . . . . . . . . . . . . . . . . AOE 312 | . 7 18 21 94 . 14 38 . . 28 . . 11 81 . . Terrain Rammed . | . . . . . . . . . . . . . . . . . Walls Destroyed . | . . . . . . . . . . . . . . . . . Machines Disabled . | . . . . . . . . . . . . . . . . . Actions | -11 -10 -10 -9 -9 -8 -8 -7 -7 -7 -7 -7 -7 -6 -6 -6 -6 --------- Run | Scr Mat Min Mat Min Mat Sto Fac Was Fac Low Low Dat Pro Fac Was Fac Total 16222 | 58 1055 580 1017 331 1450 803 2601 197 997 795 258 355 544 4611 297 273 Wait 1793 | . 115 11 61 8 113 96 173 20 72 87 2 172 35 744 52 32 Move 13255 | 46 839 556 794 303 1144 593 2335 172 889 672 253 149 472 3573 235 230 Hop . | . . . . . . . . . . . . . . . . . Pick Up 140 | 6 20 1 20 2 18 7 11 2 8 3 . 4 2 35 1 . Fast Attach 66 | 5 5 1 6 . 8 8 . . 3 1 . . 1 24 4 . Attach 45 | 1 1 . 1 . 3 1 10 1 2 2 . . 3 20 . . Detach 12 | . . . . . 1 . 2 . . 1 . 1 2 5 . . Swap 110 | . 5 2 22 3 11 3 11 . 3 13 . 2 4 29 1 1 Drop 174 | . 15 2 35 3 34 12 15 2 11 2 . 4 2 33 4 . Fire 352 | . 45 3 73 12 115 79 8 . . 2 . . 1 14 . . Melee 249 | . . . . . . . 36 . 9 12 3 23 22 134 . 10 Ram . | . . . . . . . . . . . . . . . . . Kick . | . . . . . . . . . . . . . . . . . Crush 26 | . 10 4 5 . 3 4 . . . . . . . . . . Escape Stasis . | . . . . . . . . . . . . . . . . . Rewire . | . . . . . . . . . . . . . . . . . Trap . | . . . . . . . . . . . . . . . . . Miscellaneous . | . . . . . . . . . . . . . . . . . Route ------- -11/Scrapyard -10/Materials (discovered 5 exits: *Mat x3 / *Min x2) -10/Mines (discovered 3 exits: *Mat x2 / [*Exi]) -9/Materials (discovered 2 exits: *Mat / [*Min]) -9/Mines -8/Materials (discovered 5 exits: *Fac x3 / *Sto x2) -8/Storage -7/Factory -7/Waste -7/Factory (discovered 2 exits: *Low x2) -7/Lower Caves -7/Lower Caves (discovered 2 exits: Fac / *Dat) -7/Data Miner -6/Proximity Caves -6/Factory (discovered 7 exits: *Fac x3 / Low x2 / Ext x2) -6/Waste -6/Factory (discovered 4 exits: Low x2 / Ext x2) History --------- Turn | Location | Event 8 | -11/Scrapyard | Discovered new exit (range 15) 85 | -11/Scrapyard | Entered Materials 122 | -10/Materials | Discovered new exit (range 13) 270 | -10/Materials | Discovered new exit (range 16) 303 | -10/Materials | Build established: Mutant 530 | -10/Materials | Discovered new exit (range 16) 642 | -10/Materials | Discovered new exit (range 13) 1152 | -10/Materials | Discovered new exit (range 13) 1635 | -10/Materials | Repaired Lgt. Armor Plating 1663 | -10/Materials | Repaired Ion Engine 1728 | -10/Materials | Entered Mines 1764 | -10/Mines | Discovered new exit (range 13) 1930 | -10/Mines | Received a Mining Laser from a helpful Derelict 1930 | -10/Mines | Discovered new exit (range 7) 2001 | -10/Mines | Deemed a non-threat by the Exiles lab entrance 2002 | -10/Mines | Discovered new exit (range 5) 2044 | -10/Mines | Learned location of Zion (-6) 2127 | -10/Mines | Found a hidden stash of uninstalled traps 2649 | -10/Mines | Entered Materials 2649 | -9/Materials | Accompanied by 2 allies 2649 | -9/Materials | Evolved 2 slots: Propulsion x1, Utility x1 2654 | -9/Materials | Led the pair of lost Derelicts to an unsafe place 3299 | -9/Materials | Discovered new exit (range 15) 3703 | -9/Materials | Discovered new exit (range 14) 3873 | -9/Materials | Build established: Scavenger-Mutant 4278 | -9/Materials | Entered Mines 4279 | -9/Mines | Assembled infested the area 4506 | -9/Mines | Build established: Mutant 4724 | -9/Mines | Found a damaged Exp. Sensor Array with a note attached 4727 | -9/Mines | Found Prototype Device 4756 | -9/Mines | Discovered new exit (range 13) 4769 | -9/Mines | Assisted by bots powering up and referring to "LRC-V3" 4792 | -9/Mines | Received a Rocket Launcher from a helpful Derelict 4803 | -9/Mines | Entered Materials 4803 | -8/Materials | Accompanied by 3 allies 4803 | -8/Materials | Evolved 2 slots: Utility x2 4843 | -8/Materials | Discovered new exit (range 16) 4856 | -8/Materials | Identified Exp. Sensor Array 5159 | -8/Materials | Discovered new exit (range 5) 5369 | -8/Materials | Discovered new exit (range 11) 5441 | -8/Materials | Central database locked down 5893 | -8/Materials | Garrison activated, responded to threat 6111 | -8/Materials | Garrison activated, responded to threat 6731 | -8/Materials | Discovered new exit (range 10) 6828 | -8/Materials | Discovered new exit (range 8) 6972 | -8/Materials | Destroyed 8 combat bots 7098 | -8/Materials | Entered Storage 7135 | -8/Storage | Repaired Hrd. Heavy Armor Plating 7156 | -8/Storage | Found Prototype Protection 7156 | -8/Storage | Identified Lgt. Regenerative Plating 7167 | -8/Storage | Found Lgt. Regenerative Plating 7170 | -8/Storage | Found Lgt. Regenerative Plating 7292 | -8/Storage | Learned location of Armory (-3) 8207 | -8/Storage | Core integrity fell below 50% 8320 | -8/Storage | Discovered new exit (range 16) 8364 | -8/Storage | Entered Factory 8364 | -7/Factory | Evolved 2 slots: Propulsion x1, Utility x1 8650 | -7/Factory | Build established: Hacker-Mutant 8681 | -7/Factory | Garrison activated, responded to threat 8841 | -7/Factory | Discovered new exit (range 7) 8858 | -7/Factory | Identified exit to Factory 9206 | -7/Factory | Fabricated Lrn. Terrain Scanner (x1) 9353 | -7/Factory | Repaired Aerolev Unit? 9582 | -7/Factory | Manually triggered Chute Trap 9582 | -7/Factory | Sucked down chute 9582 | -7/Factory | Entered Waste 9583 | -7/Waste | Joined by Warlord forces that had cleared the area 9640 | -7/Waste | Discovered new exit (range 12) 9651 | -7/Waste | Identified exit to Factory 9672 | -7/Waste | Entered Factory 9672 | -7/Factory | Accompanied by 20 allies 9787 | -7/Factory | Identified exit to Lower Caves 10008 | -7/Factory | Garrison activated, responded to threat 10129 | -7/Factory | Entered Lower Caves 10142 | -7/Lower Caves | Encountered a Warlord checkpoint 10155 | -7/Lower Caves | Ambushed by wild Derelicts 10390 | -7/Lower Caves | P-60 Hacker assimilated allied D4-QVZ(b) 10436 | -7/Lower Caves | Identified exit to Lower Caves 10539 | -7/Lower Caves | Entered another Lower Caves area 10598 | -7/Lower Caves | Spotted B-75 Beast 10631 | -7/Lower Caves | Learned location of 1 exit from Factory 10642 | -7/Lower Caves | Discovered new exit (range 4) 10644 | -7/Lower Caves | Identified exit to Data Miner 10645 | -7/Lower Caves | Entered Data Miner 10645 | -7/Data Miner | Discovered new exit (range 6) 10653 | -7/Data Miner | Met Data Miner 10660 | -7/Data Miner | Learned location of Section 7 (-2) 10660 | -7/Data Miner | Acquired the access code to Warlord's prototype stash 10669 | -7/Data Miner | Received God Mode back door access code from Data Miner 10673 | -7/Data Miner | Destroyed Data Miner 10678 | -7/Data Miner | Found Prototype Hackware 10680 | -7/Data Miner | Found Prototype Hackware 10681 | -7/Data Miner | Found Prototype Hackware 10683 | -7/Data Miner | Found Prototype Hackware 10685 | -7/Data Miner | Data Conduit disabled 10941 | -7/Data Miner | Identified exit to Proximity Caves 10941 | -7/Data Miner | Entered Proximity Caves 11236 | -6/Proximity Caves | Discovered exit to Factory (range 9) 11239 | -6/Proximity Caves | Entered Factory 11239 | -6/Factory | Evolved 2 slots: Propulsion x1, Utility x1 11240 | -6/Factory | Identified exit to Factory 11242 | -6/Factory | Identified Quantum Router 11245 | -6/Factory | Identified System Mapper 11305 | -6/Factory | Garrison activated, responded to threat 11308 | -6/Factory | Discovered exit to Factory (range 8) 11491 | -6/Factory | Lost 3 parts (1p2n) 11579 | -6/Factory | Lost 6 parts (1p3n1u1w) 11997 | -6/Factory | Identified Deep Network Scanner 12069 | -6/Factory | Repaired Lrn. Missile Launcher 12090 | -6/Factory | Repaired Imp. Utility Shielding 12111 | -6/Factory | Repaired Imp. Propulsion Shielding 12206 | -6/Factory | Identified Ghost Barrier 12294 | -6/Factory | Build established: Wizard-Mutant 12441 | -6/Factory | Discovered exit to Factory (range 13) 12447 | -6/Factory | Identified exit to Lower Caves 12447 | -6/Factory | Identified exit to Extension 12496 | -6/Factory | Fabricated Mni. Smartbomb Launcher (x1) 12562 | -6/Factory | Fabricated Cld. Gravmag System (x1) 12629 | -6/Factory | Fabricated Combat Drone Bay (x1) 12849 | -6/Factory | Fabricated Cld. Gravmag System? 13290 | -6/Factory | Fabricated Exp. Utility Shielding (x1) 13590 | -6/Factory | Repaired Mni. Smartbomb Launcher 13766 | -6/Factory | Repaired Exp. Sensor Array 13812 | -6/Factory | Repaired Gravmag System 14354 | -6/Factory | Fabricated Hcp. Storage Unit (x1) 14567 | -6/Factory | Manually triggered Chute Trap 14567 | -6/Factory | Sucked down chute 14567 | -6/Factory | Entered Waste 14579 | -6/Waste | Spotted C-40 Crusher 14579 | -6/Waste | Spotted C-40 Crusher 14579 | -6/Waste | Spotted C-40 Crusher 14580 | -6/Waste | Spotted C-40 Crusher 14592 | -6/Waste | Found Adv. Powered Armor 14604 | -6/Waste | Warlord forces began an assault 14606 | -6/Waste | Allies destroyed C-40 Crusher 14614 | -6/Waste | Allies destroyed C-40 Crusher 14618 | -6/Waste | Allies destroyed C-40 Crusher 14619 | -6/Waste | Allies destroyed C-40 Crusher 14633 | -6/Waste | Spotted C-40 Crusher 14633 | -6/Waste | Spotted C-40 Crusher 14680 | -6/Waste | Discovered new exit (range 12) 14693 | -6/Waste | Identified exit to Factory 14719 | -6/Waste | Entered Factory 14719 | -6/Factory | Accompanied by 17 allies 14867 | -6/Factory | Self-destructed Last Messages --------------- 2x Com. Matter Pod 1x Cmb. Airjet 1x Component Analysis Suite >>Trojan(Botnet) Trojan loaded successfully. Testing... Terminal linked with 1 system. Awaiting botnet instructions. >>Layout(Zone) Retrieving Zone 1M layout... Downloaded map data. 14865_ Acquired 10 matter. 14867_ Connecting with Terminal... >>Access(Branch) Found 4 branch access points: (146,24) Lower Caves (125,165) Lower Caves (135,14) Extension (30,127) Extension Map updated. Map ----- +----------------------------------------------------+ | # # """ ????????? | | # # """" # """ ######### ?????????? | | # # """" # # ???????????????? | | # # """" # """gg # ???????????????? | | # + """" # l"""l # ???????????????? | | # # """" # """ g # ???????????????? | | # # """" # g t ???????????????? | | # # """" # g g # k ???????????????? | | # # # "" # ???????????????? | | # ######### "" # ???????????????? | | # "T g # ???????????????? | | + "" # # " " ???????? | | # "" m # + " " ???????? | | # m # # ???????? | | # ######### u ???????? | | #########+#############+#######????# ???????? | | ?????# #??#! = #????# ???????? | | ?????# ! """#??# d !#????# ???????? | | ?????# """#??# ! #????# ???????? | | ?????# """#??# #????# ???????? | | ?????# #??# """!! ! ###### ???????? | | ?????# """#??# """"" ! + g g #???????? | | ?????# """#??# """""d= ########/###???????? | | ?????# """#??# s #?# g l ???????? | | ?????# #??# s #?# ???????? | | ?????##########??# @ #?# ???????? | | ?????????????????# ""T"" #?# ???????? | | ?????????????????# """"" #?# """ ""???????? | | ?????????????????##############?# """ ""???????? | | ????????????????????????????????# """ ""???????? | | ????????????????????????????????# ???????? | | ????????????????????????????????# """ ""???????? | | ????????????????????????????????# """ ""???????? | | ????????????????????????????????# """ ""???????? | | ????????????????????????????????# ???????? | | ????????????????????????????????#######Y##???????? | | ??????????????????????????????????????####???????? | | ?????????????????????????????????????????#???????? | | ?????????????????????????????????????????#???????? | | ?????????????????????????????????????????#???????? | | ?????????????????????????????????????????#???????? | | ?????????????????????????????????????????#???????? | | ?????????????????????????????????????????????????? | | ?????????????????????????????????????????????????? | | ?????????????????????????????????????????????????? | | | | | | | | | | | +----------------------------------------------------+ Best States ------------- Heat Dissipation 48 Coolant Potential 50 Energy Generation 18 Energy Capacity 280 Matter Stores 300 Matter Capacity 300 Sight Range 16 Robot Scan Range 20 Terrain Scan Density 10 Armor Coverage 600 Resistance: TH 15 Propulsion Shielding 66 Utility Shielding 90 Evasion (%) 58 Targeting Accuracy 6 Recoil Reduction 3 Offensive Hacking 55 Defensive Hacking 45 Authchip Count 5 Trap Extractor Capacity 6 Item Schematics ----------------- Hcp. Storage Unit | -10/Materials | Hacked Signal Interpreter | -9/Materials | Hacked Wheel | -9/Materials | Hacked Hacking Suite | -9/Materials | Scanalyzed Imp. Hover Unit | -9/Materials | Scanalyzed Exp. Sensor Array | -8/Materials | Scanalyzed Cmb. Airjet | -8/Materials | Scanalyzed Imp. Propulsion Shielding | -7/Factory | Scanalyzed Aerolev Unit | -7/Factory | Scanalyzed Hvy. Missile Launcher | -7/Factory | Scanalyzed Powered Armor | -7/Factory | Hacked Imp. Transmission Jammer | -7/Factory | Scanalyzed Lrn. Terrain Scanner | -7/Factory | Scanalyzed Imp. Hacking Suite | -7/Factory | Scanalyzed Combat Drone Bay | -7/Data Miner | Free Lgt. Regenerative Plating | -7/Data Miner | Free Cld. Aerolev Unit | -7/Data Miner | Free Exp. Targeting Computer | -7/Data Miner | Free Imp. Lightning Gun | -7/Data Miner | Free Cmb. Gravmag System | -7/Data Miner | Free Imp. Launcher Guidance Computer | -7/Data Miner | Free Imp. Arc Projector | -7/Data Miner | Free Imp. Corruption Screen | -7/Data Miner | Free Force Field | -7/Data Miner | Free Prc. Energy Filter | -6/Factory | Hacked Exp. Utility Shielding | -6/Factory | Hacked Exp. Propulsion Shielding | -6/Factory | Hacked Nanoactuators | -6/Factory | Hacked Mni. Smartbomb Launcher | -6/Factory | Hacked Cld. Gravmag System | -6/Factory | Hacked Thermal Defense Suite | -6/Factory | Scanalyzed Adv. System Shield | -6/Factory | Scanalyzed Hcp. Matter Pod | -6/Factory | Scanalyzed Exp. Weapon Shielding | -6/Factory | Scanalyzed Matter Compressor | -6/Factory | Scanalyzed Remote Datajack | -6/Factory | Scanalyzed Imp. Trap Extractor | -6/Factory | Scanalyzed Adv. Trap Extractor | -6/Factory | Hacked Robot Schematics ------------------ G-50 Soldier | -7/Data Miner | Free S-27 Virus | -7/Data Miner | Free X-62 Marksman | -7/Data Miner | Free G-47 Trooper | -7/Data Miner | Free B-60 Warrior | -7/Data Miner | Free A-15 Conveyor | -7/Data Miner | Free Fabricated ------------ Lrn. Terrain Scanner | x1 | -7/Factory | Preloaded Mni. Smartbomb Launcher | x1 | -6/Factory | Authchip Cld. Gravmag System | x1 | -6/Factory | Authchip Combat Drone Bay | x1 | -6/Factory | Authchip Cld. Gravmag System | x1 | -6/Factory | Authchip Exp. Utility Shielding | x1 | -6/Factory | Authchip Hcp. Storage Unit | x1 | -6/Factory Alien Tech Used ----------------- None Achievements -------------- None Challenges ------------ None Game ------ Seed VariableIonFemtoactuators Manual? 0 Play Time 02:31:24 Cumulative 389.4 hours Start 2022.05.02 @ 18:20:42 End 2022.05.04 @ 10:28:09 Sessions 17 Manual Loads 0 Difficulty Rogue Special Mode None Game No. 386 Rogue 386 Adventurer 0 Explorer 0 Win Type - Total 20 Types 12/2/3/2/0/0/0/1/0 Lore% 92 Gallery% 88 Achievement% 75 Wizard Run 0 Options --------- ASCII 0 Keyboard 0 Movement Arrows Keybinds 0 Fullscreen 1 Font 18/Smallcaps Map View 76x50 Tactical HUD 1 Map Filters NONE Filters NONE Steam 1 RUN: 65571d09-4571-43e5-88af-7dde1f538967